[Event "1st Bella Italia International 2022"]
[Site "Lignano"]
[Date "2022.08.20"]
[Round "5.4"]
[White "Loiacono, Leonardo"]
[Black "Jonkman, Harmen"]
[Result "1/2-1/2"]
[ECO "A07"]
[WhiteElo "2291"]
[BlackElo "2373"]
[Annotator "TA"]
[PlyCount "73"]
[EventDate "2022.08.18"]
[EventCountry "ITA"]
[SourceTitle "playchess.com"]
[Source "ChessBase"]
[SourceQuality "1"]
[TimeControl "5400+30"]

{[%evp 9,73,64,72,64,71,70,76,56,58,43,49,18,32,21,46,41,41,8,21,9,11,14,34,23,37,35,35,38,43,29,52,16,12,0,2,0,0,0,0,0,0,-6,0,0,0,-15,-11,-12,0,0,0,-31,-27,-25,-2,-2,0,0,-6,-7,0,0,0,-4,0,0]} 1. Nf3 {[%emt 0:12:41]} d5 {[%emt 0:00:41]} 2. g3 {[%emt 0:00:04]} Bg4 {[%emt 0:00:44]} 3. Bg2 {[%emt 0:00:04]} Nd7 {[%emt 0:00:18]} 4. c4 {[%emt 0:01:07]} dxc4 {[%emt 0:02:57]} 5. Na3 {[%emt 0:00:48]} c6 {[%emt 0:10:30]} 6. Nxc4 {[%emt 0:00:16] A07: Réti Opening: New York and Capablanca Systems.} g6 {[%emt 0:06:19]} 7. O-O {[%emt 0:04:05]} Bg7 {[%emt 0:01:26]} 8. d3 {[%emt 0:00:26] White is better.} Ngf6 {[%emt 0:01:54] [#]} 9. Bd2 $146 {[%emt 0:05:36]} ({Predecessor:} 9. h3 Be6 10. Ncd2 Nb6 11. Ng5 Qc8 12. Nxe6 Qxe6 13. Nf3 O-O 14. Qc2 Nfd5 15. a3 {½-½ (71) Lauterbach,I (2075)-Kryger,O (2213) London 2011}) 9... Nd5 {[%emt 0:04:23]} 10. Qc1 {[%emt 0:02:19]} O-O {[%emt 0:02:21]} 11. Bh6 {[%emt 0:01:11]} a5 {[%emt 0:17:31]} 12. Bxg7 {[%emt 0:01:09]} Kxg7 {[%emt 0:00:12]} 13. Re1 {[%emt 0:10:25]} Bxf3 {[%emt 0:02:05]} 14. Bxf3 {[%emt 0:00:10]} e5 {[%emt 0:01:06]} 15. b3 {[%emt 0:01:52]} Nc7 {[%emt 0:14:32]} 16. Qb2 {[%emt 0:02:58]} Qf6 {[%emt 0:00:24]} 17. Bg4 {[%emt 0:01:03]} Ne6 {[%emt 0:00:46]} 18. Bxe6 {[%emt 0:00:13]} Qxe6 {[%emt 0:01:19]} 19. d4 {[%emt 0:00:09]} f6 {[%emt 0:03:44]} 20. dxe5 {[%emt 0:00:10]} (20. Red1 {feels hotter.} a4 21. Rac1 axb3 22. Qxb3 Ra7 23. a4) 20... Nxe5 {[%emt 0:00:10]} 21. Nxe5 {[%emt 0:00:18]} Qxe5 {[%emt 0:01:24]} (21... fxe5 {with more complications.} 22. Rad1 Rad8 23. Rd2 Qf6) 22. Qxe5 {[%emt 0:00:17]} fxe5 $14 {[%emt 0:00:01][%mdl 4096] Endgame KRR-KRR} 23. Red1 {[%emt 0:00:27]} Rfd8 {[%emt 0:00:19] Against Rd7+} 24. f4 {[%emt 0:02:15]} Kf6 {[%emt 0:02:16]} 25. Kf2 {[%emt 0:00:30]} h5 {[%emt 0:03:18]} 26. Kf3 {[%emt 0:00:43]} Ke6 {[%emt 0:01:00]} 27. Ke4 {[%emt 0:01:37]} Rd5 {[%emt 0:00:26]} 28. Rac1 {[%emt 0:02:15]} Rad8 {[%emt 0:00:29]} 29. Rxd5 {[%emt 0:00:14]} Rxd5 $11 {[%emt 0:00:08] KR-KR} 30. Rc2 {[%emt 0:01:29] Against Rd2} a4 {[%emt 0:00:35]} 31. e3 {[%emt 0:02:27]} axb3 {[%emt 0:02:13]} 32. axb3 {[%emt 0:00:05] The position is equal.} Rb5 {[%emt 0:00:48]} 33. Rc3 {[%emt 0:00:35]} Rb4+ {[%emt 0:02:38]} 34. Kf3 {[%emt 0:00:20]} Kd5 {[%emt 0:01:50]} 35. Rd3+ {[%emt 0:01:02]} Ke6 {[%emt 0:00:01] [#] Strongly threatening ...e4+.} 36. Rc3 {[%emt 0:00:11]} Kd5 {[%emt 0:00:12]} 37. Rd3+ {[%emt 0:00:04] Weighted Error Value: White=0.08 (flawless) /Black=0.06 (flawless)} 1/2-1/2

[Event "1st Bella Italia International 2022"]
[Site "Lignano"]
[Date "2022.08.20"]
[Round "5.5"]
[White "Urbani, Gabriel"]
[Black "Lumachi, Gabriele"]
[Result "0-1"]
[ECO "C42"]
[WhiteElo "2046"]
[BlackElo "2355"]
[Annotator "TA"]
[PlyCount "76"]
[EventDate "2022.08.18"]
[EventCountry "ITA"]
[SourceTitle "playchess.com"]
[Source "ChessBase"]
[SourceQuality "1"]
[TimeControl "5400+30"]

{[%evp 13,75,8,7,18,15,7,17,0,0,0,-2,-20,0,0,0,-25,-21,-21,-16,-54,-14,-131,-131,-145,67,58,62,0,0,0,0,0,2,7,64,66,57,11,23,-78,-88,-760,-754,-683,-599,-660,-591,-29974,-29975,-5832,-753,-732,-318,-732,-721,-695,-689,-673,-631,-29987,-29988,-29988,-29989,-29999]} 1. e4 {[%emt 0:00:04]} e5 {[%emt 0:00:06]} 2. Nf3 {[%emt 0:00:14]} Nf6 {[%emt 0:00:06]} 3. Nxe5 {[%emt 0:00:22]} d6 {[%emt 0:00:08]} 4. Nf3 {[%emt 0:00:11]} Nxe4 {[%emt 0:00:06]} 5. Nc3 {[%emt 0:00:45]} Nxc3 {[%emt 0:00:13]} 6. dxc3 {[%emt 0:00:07]} Be7 {[%emt 0:00:05]} 7. Bd3 {[%emt 0:02:28]} Nd7 {[%emt 0:00:07]} 8. Be3 {[%emt 0:00:52] C42: Petroff Defence: 3 Nxe5 and unusual White 3rd moves.} O-O {[%emt 0:00:33]} 9. Qd2 {[%emt 0:02:53]} Nf6 {[%emt 0:03:43]} 10. h3 {[%emt 0:04:34] The position is equal.} c5 {[%emt 0:03:09] [#]} 11. c4 $146 {[%emt 0:04:52]} ({Predecessor:} 11. O-O d5 12. Rad1 b6 13. Qe2 Qc7 14. Ba6 Be6 15. Ng5 Bd6 16. b3 Rae8 17. Bb5 {½-½ (83) Heredia Serrano,C (2090)-Smith,O (2038) Chennai 2022}) 11... Bd7 {[%emt 0:07:31]} 12. O-O-O {[%emt 0:06:28]} Bc6 {[%emt 0:06:11]} 13. Rhe1 {[%emt 0:07:37]} Re8 {[%emt 0:05:09]} 14. Bf4 {[%emt 0:08:56]} a6 {[%emt 0:04:00]} 15. Ng5 {[%emt 0:20:43]} b5 {[%emt 0:01:09]} 16. Be4 {[%emt 0:04:43]} Qb6 {[%emt 0:18:48]} (16... Qd7 $5 {[%cal Rb5c4]}) 17. Bxd6 {[%emt 0:24:13] [#]} (17. Bd5 $11 Bxd5 18. cxd5) 17... Rad8 $1 $17 {[%emt 0:09:16]} 18. Qf4 {[%emt 0:00:57]} h6 $2 {[%emt 0:01:14]} (18... Rxd6 $17 19. Rxd6 Bxd6 20. Qxd6 Nxe4 21. Nxe4 (21. Rxe4 $2 Rd8 $17) 21... Qb7) 19. Bc7 $36 {[%emt 0:03:02][%mdl 2048] Black is under pressure.} ({Much weaker is} 19. Bxc6 hxg5 20. Qf3 (20. Qxg5 $2 Qxc6 21. cxb5 axb5 $19) 20... Bxd6 $11) 19... Rxd1+ {[%emt 0:03:31]} 20. Kxd1 {[%emt 0:02:10]} (20. Rxd1 $14 Qb7 21. Bxc6 Qxc6 22. Nf3) 20... Qb7 $1 $11 {[%emt 0:01:03]} 21. Bxc6 $1 {[%emt 0:00:59]} Qxc6 {[%emt 0:00:08]} 22. Nf3 {[%emt 0:01:06]} bxc4 {[%emt 0:01:27] And now ...g5 would win.} 23. Be5 $1 {[%emt 0:01:08]} Rd8+ {[%emt 0:11:19]} (23... Qa4 $11) 24. Kc1 $14 {[%emt 0:00:02]} Qa4 {[%emt 0:00:14]} 25. Kb1 {[%emt 0:00:37]} (25. a3 $14) 25... Nd5 $11 {[%emt 0:01:08]} 26. Qc1 {[%emt 0:00:53]} (26. b3 $11 {keeps the balance.} Nxf4 27. bxa4) 26... c3 $17 {[%emt 0:01:07] aiming for ...cxb2. Black is more active.} ({Of course not} 26... Nb4 27. a3 Nd5 28. c3 $11) 27. Bxc3 {[%emt 0:01:41][%mdl 8192] Loses the game.} (27. b3 $17 Qb4 28. Bg3) 27... Nxc3+ $19 {[%emt 0:01:21]} 28. bxc3 {[%emt 0:00:01]} Rb8+ {[%emt 0:00:16]} 29. Ka1 {[%emt 0:00:03] [#]} Qa5 $1 {[%emt 0:01:26]} 30. Qd2 {[%emt 0:01:14]} (30. Re3 c4) 30... Bf6 {[%emt 0:00:22]} 31. Ne5 {[%emt 0:00:13]} Qa3 {[%emt 0:00:55]} (31... Bxe5 $142 32. Rxe5 Qa3 33. Re8+ Rxe8) 32. Rb1 {[%emt 0:00:39]} Rxb1+ {[%emt 0:00:47]} ({Stronger than} 32... Bxe5 33. Rxb8+ Bxb8 34. Qd8+ Kh7 35. Qxb8 $17) 33. Kxb1 {[%emt 0:00:01]} Bxe5 {[%emt 0:00:17]} 34. Qd8+ {[%emt 0:00:47]} Kh7 {[%emt 0:00:09]} 35. Qd3+ {[%emt 0:00:08]} g6 {[%emt 0:00:06]} 36. Qd5 {[%emt 0:00:10]} Qxc3 {[%emt 0:00:07][%csl Ge5][%cal Rc3a1] Black mates.} 37. Qxf7+ {[%emt 0:00:08]} Bg7 {[%emt 0:00:04][%csl Gg7][%cal Rc3a1]} 38. Kc1 {[%emt 0:00:08]} Qe1# {[%emt 0:00:06] Weighted Error Value: White=0.87/Black=0.27 (precise)} 0-1

[Event "1st Bella Italia International 2022"]
[Site "Lignano"]
[Date "2022.08.20"]
[Round "5.6"]
[White "Tencati, Giuseppe"]
[Black "Das, Sayantan"]
[Result "0-1"]
[ECO "C04"]
[WhiteElo "2055"]
[BlackElo "2449"]
[Annotator "TA"]
[PlyCount "96"]
[EventDate "2022.08.18"]
[EventCountry "ITA"]
[SourceTitle "playchess.com"]
[Source "ChessBase"]
[SourceQuality "1"]
[TimeControl "5400+30"]

{[%evp 14,96,37,20,35,18,16,16,15,8,10,12,14,13,12,12,12,12,33,34,31,36,43,0,0,0,0,0,0,0,0,-22,0,-90,0,-7,0,0,0,0,0,-1,0,0,0,0,0,0,0,0,0,-24,-24,-20,-16,-16,0,-22,-20,-79,-84,-77,-85,-93,-93,-258,-253,-341,-332,-418,-406,-727,-365,-348,-343,-389,-286,-385,-365,-419,-290,-389,-391,-572,-352]} 1. e4 {[%emt 0:00:02]} e6 {[%emt 0:00:37]} 2. d4 {[%emt 0:00:06]} d5 {[%emt 0:00:07]} 3. Nd2 {[%emt 0:00:07]} Nc6 {[%emt 0:01:52]} 4. Ngf3 {[%emt 0:01:38]} Nf6 {[%emt 0:00:21]} 5. e5 {[%emt 0:00:57]} Nd7 {[%emt 0:00:11]} 6. Nb3 {[%emt 0:18:04]} a5 {[%emt 0:04:12]} 7. a4 {[%emt 0:00:43]} b6 {[%emt 0:00:10]} 8. Bb5 {[%emt 0:00:40]} Bb7 {[%emt 0:05:16] [#] C04: French Tarrasch: 3...Nc6.} 9. Bg5 $146 {[%emt 0:03:17]} ({Predecessor:} 9. O-O Be7 10. Re1 O-O 11. Bf4 Na7 12. Bf1 c5 13. c3 Nc6 14. Bb5 Na7 15. Bf1 Nc6 16. Bb5 {0-1 (60) Gavrilescu,D (2213)-Yemelin,V (2574) Arad 2015}) 9... Be7 {[%emt 0:00:24]} 10. Bxe7 {[%emt 0:00:28]} Nxe7 {[%emt 0:04:44] The position is equal.} 11. Qe2 {[%emt 0:11:45]} c6 {[%emt 0:05:37]} 12. Bd3 {[%emt 0:00:08]} c5 {[%emt 0:00:11]} 13. Bb5 {[%emt 0:04:49]} Nc6 {[%emt 0:03:50]} 14. c3 {[%emt 0:01:03]} O-O {[%emt 0:00:29]} 15. O-O {[%emt 0:00:15]} c4 {[%emt 0:08:55]} 16. Nbd2 {[%emt 0:00:25]} Na7 {[%emt 0:00:09]} 17. Bxd7 {[%emt 0:01:30]} Qxd7 {[%emt 0:03:03]} 18. Rfb1 {[%emt 0:02:14]} Bc6 {[%emt 0:02:52]} 19. Qd1 {[%emt 0:01:00]} b5 {[%emt 0:04:56]} 20. b3 {[%emt 0:05:00]} Qc7 {[%emt 0:14:44]} 21. Qc2 {[%emt 0:07:28]} h6 {[%emt 0:03:46]} 22. Ne1 {[%emt 0:27:17]} Rfb8 {[%emt 0:05:05]} 23. f4 {[%emt 0:01:13] [#]} (23. axb5 $11 cxb3 24. Nxb3 Rxb5 25. Nc5) 23... Nc8 {[%emt 0:02:41]} ({Much worse is} 23... cxb3 $6 24. Nxb3 bxa4 25. Nc5 $15) ({Black should play} 23... bxa4 $1 $17 24. bxc4 dxc4) 24. axb5 $11 {[%emt 0:03:13]} cxb3 {[%emt 0:00:38]} 25. Nxb3 {[%emt 0:00:26]} Bxb5 {[%emt 0:01:33]} 26. Nc5 {[%emt 0:00:21] Against a4} Ne7 {[%emt 0:00:11][%cal Bc8e7,Be7g6,Bg6f8][%mdl 32]} 27. g4 {[%emt 0:01:46]} Qc8 {[%emt 0:12:20]} 28. Ng2 {[%emt 0:00:25]} Ng6 {[%emt 0:02:18]} 29. Qf2 {[%emt 0:02:02]} Nf8 {[%emt 0:03:07]} 30. f5 {[%emt 0:00:44]} exf5 {[%emt 0:00:07]} 31. gxf5 {[%emt 0:00:26] [#] Threatens to win with Ne3.} Nd7 {[%emt 0:00:06]} 32. e6 {[%emt 0:04:15]} Nxc5 {[%emt 0:01:06]} 33. exf7+ {[%emt 0:00:04]} Kxf7 {[%emt 0:00:28]} 34. dxc5 {[%emt 0:00:04]} Bd3 {[%emt 0:01:01][%csl LRb1,LRf5]} 35. Rd1 {[%emt 0:02:33]} Be4 {[%emt 0:01:14] And now ...a4 would win.} 36. c4 {[%emt 0:01:08]} (36. Nf4 $1 $11 {keeps the balance.}) 36... dxc4 $17 {[%emt 0:01:00] ...c3 is the strong threat.} 37. Qd4 {[%emt 0:00:24][%csl LRc4,LRe4]} Bxf5 {[%emt 0:00:42]} 38. Qxc4+ {[%emt 0:00:29]} Be6 {[%emt 0:00:27]} 39. Rf1+ $2 {[%emt 0:00:41] Now White is beyond hope.} (39. Qc3 $17 {was called for.}) 39... Kg8 $1 $19 {[%emt 0:00:05]} 40. Qd4 {[%emt 0:00:09]} Rb4 {[%emt 0:00:38][%cal Bb8b4,Bb4g4,Bg4g5][%mdl 32]} 41. Qe3 {[%emt 0:00:24]} Rg4 {[%emt 0:00:38] Strongly threatening ...Bd5.} 42. Rf4 {[%emt 0:00:38]} (42. Rad1 $142 Bc4 43. Rf2) 42... Rg5 {[%emt 0:00:29]} 43. h4 {[%emt 0:00:34]} Rxc5 {[%emt 0:01:13]} 44. Re1 {[%emt 0:00:56]} Bc4 {[%emt 0:02:26] Hoping for ...a4.} 45. Qe7 {[%emt 0:00:29]} Rf5 {[%emt 0:01:40]} 46. Rd4 {[%emt 0:00:31]} Qc5 {[%emt 0:01:47]} 47. Qe3 {[%emt 0:00:02]} Raf8 {[%emt 0:01:35] White must now prevent ...Qc7.} 48. Kh2 {[%emt 0:00:39]} (48. Rg4 $142) 48... Qc7+ {[%emt 0:00:15] Weighted Error Value: White=0.42/Black=0.24 (precise)} 0-1

[Event "1st Bella Italia International 2022"]
[Site "Lignano"]
[Date "2022.08.20"]
[Round "5.7"]
[White "Zeller, Frank"]
[Black "Micottis, Dorian"]
[Result "1-0"]
[ECO "E69"]
[WhiteElo "2356"]
[BlackElo "2263"]
[Annotator "TA"]
[PlyCount "129"]
[EventDate "2022.08.18"]
[EventCountry "ITA"]
[SourceTitle "playchess.com"]
[Source "ChessBase"]
[SourceQuality "1"]
[TimeControl "5400+30"]

{[%evp 27,129,52,74,79,91,33,69,0,-21,0,64,63,59,64,62,58,86,97,108,98,100,78,110,85,108,77,63,54,332,336,325,322,305,233,228,220,318,330,314,323,309,314,332,361,336,325,865,580,564,553,1233,1229,1112,719,714,703,496,105,105,118,1586,1595,1540,1420,1315,1250,2068,2480,2219,2149,1785,1818,29971,29972,29971,29972,29970,29973,29969,29944,29942,29945,29955,29956,29947,6478,29950,12830,29945,12722,9283,4888,29975,29976,29979,29980,29979,29981,29986,29987,29987,29988,29987,29988]} 1. Nf3 {[%emt 0:00:39]} Nf6 {[%emt 0:00:16]} 2. c4 {[%emt 0:00:24]} g6 {[%emt 0:00:16]} 3. Nc3 {[%emt 0:00:31]} Bg7 {[%emt 0:00:26]} 4. e4 {[%emt 0:00:25]} e5 {[%emt 0:00:10]} 5. g3 {[%emt 0:03:16]} O-O {[%emt 0:02:47]} 6. Bg2 {[%emt 0:00:04]} d6 {[%emt 0:05:56]} 7. h3 {[%emt 0:05:35]} c6 {[%emt 0:06:03]} 8. O-O {[%emt 0:00:50]} Nbd7 {[%emt 0:03:46]} 9. d4 {[%emt 0:03:52]} exd4 {[%emt 0:00:35]} 10. Nxd4 {[%emt 0:02:42]} Nc5 {[%emt 0:01:40]} 11. Re1 {[%emt 0:08:29]} a5 {[%emt 0:01:06]} 12. Bf4 {[%emt 0:02:23]} Nh5 {[%emt 0:02:02]} 13. Be3 {[%emt 0:00:22]} Re8 {[%emt 0:00:43]} 14. Qc2 {[%emt 0:03:53]} Nf6 {[%emt 0:08:22]} 15. Rad1 {[%emt 0:00:31][%cal Od4c6] Black must now prevent Nxc6! E69: King's Indian: Fianchetto: 6...Nbd7 7 0-0 e5 8 e4 c6 9 h3.} Qe7 {[%emt 0:00:44]} 16. Bg5 {[%emt 0:03:24] [#]} (16. b3 $16) 16... Qc7 $146 {[%emt 0:06:22]} ({Predecessor:} 16... h6 17. Bf4 g5 18. Nxc6 bxc6 19. Bxd6 Qa7 20. e5 Nh7 21. Bxc6 Bxh3 22. Bxa8 Qxa8 23. Nd5 Nd7 24. Kh2 g4 {1-0 (40) Ferrara,A (2230)-Ramela,L Posadas 2005}) 17. Ndb5 {[%emt 0:13:44]} cxb5 $11 {[%emt 0:02:14]} 18. Nxb5 {[%emt 0:00:19]} Qe7 {[%emt 0:04:42]} ({Better is} 18... Qb8 $11) 19. Nxd6 $14 {[%emt 0:02:10] Hoping for e5.} Ne6 {[%emt 0:03:18]} 20. Nxe8 {[%emt 0:07:50]} Qxe8 {[%emt 0:04:56]} 21. Be3 {[%emt 0:02:00]} Nd7 {[%emt 0:02:48]} 22. f4 {[%emt 0:00:40]} b6 {[%emt 0:03:50]} 23. e5 {[%emt 0:10:03]} Rb8 {[%emt 0:02:16]} 24. Bd5 {[%emt 0:00:53] White is much more active.} Bb7 {[%emt 0:01:49]} 25. a3 {[%emt 0:05:10]} Ndc5 {[%emt 0:04:10]} 26. b4 {[%emt 0:01:19]} axb4 {[%emt 0:01:24]} 27. axb4 {[%emt 0:00:02]} Qa4 $2 {[%emt 0:03:32][%mdl 8192]} (27... Na6 $1 $14) 28. Qxa4 $18 {[%emt 0:06:50]} Nxa4 {[%emt 0:00:05] Pair of Knights!} 29. Ra1 {[%emt 0:03:59]} b5 {[%emt 0:04:28]} 30. Ba7 {[%emt 0:00:36]} Bxd5 {[%emt 0:01:51]} 31. cxd5 {[%emt 0:00:08]} ({Much less strong is} 31. Bxb8 $6 Bxc4 32. Rec1 Nb6) 31... Rb7 {[%emt 0:00:26]} (31... Ra8 {is a better defense.} 32. Bf2 (32. dxe6 Rxa7 33. Red1 fxe6 $16) 32... Nf8) 32. Bf2 {[%emt 0:00:54]} ({Weaker is} 32. dxe6 Rxa7 33. Red1 (33. exf7+ Kxf7 34. Kg2 Bf8 $14) 33... fxe6 $16) 32... Nc7 {[%emt 0:00:19]} 33. d6 {[%emt 0:01:42]} Ne6 {[%emt 0:03:37]} 34. Rac1 {[%emt 0:00:08]} Bf8 {[%emt 0:02:05]} 35. Rc8 {[%emt 0:00:22]} Kg7 {[%emt 0:01:03]} 36. Rd1 {[%emt 0:03:17]} Nb6 $2 {[%emt 0:05:24]} (36... f6 37. exf6+ Kxf6) 37. Re8 {[%emt 0:01:39]} Nd7 {[%emt 0:01:40]} 38. Rc1 {[%emt 0:00:18]} f6 {[%emt 0:02:28]} 39. Rxe6 {[%emt 0:02:10]} Kf7 {[%emt 0:00:03]} 40. Rc7 {[%emt 0:00:14]} Kxe6 {[%emt 0:00:17]} 41. Rxb7 {[%emt 0:00:17]} fxe5 {[%emt 0:00:05]} 42. Rxd7 $2 {[%emt 0:02:57]} Kxd7 $16 {[%emt 0:00:28]} 43. fxe5 $18 {[%emt 0:00:04][%mdl 4096] Endgame KB-KB} Ke6 $2 {[%emt 0:00:24][%mdl 8192]} (43... Bh6 $16 44. Kf1 Bc1) 44. Bd4 {[%emt 0:00:10]} Bh6 {[%emt 0:00:12] [#]} 45. Bc3 $1 {[%emt 0:00:26]} Be3+ {[%emt 0:01:38]} 46. Kg2 {[%emt 0:00:06]} h5 {[%emt 0:00:13]} 47. Kf3 {[%emt 0:00:04]} Bb6 {[%emt 0:00:23]} 48. Ke4 {[%emt 0:00:08] White threatens Bd4 and mate.} Bf2 {[%emt 0:00:27]} 49. g4 {[%emt 0:02:02]} hxg4 {[%emt 0:00:04]} 50. hxg4 {[%emt 0:00:03]} Bg3 {[%emt 0:00:37]} 51. Bd4 {[%emt 0:02:31]} Be1 {[%emt 0:00:30]} 52. Bc5 {[%emt 0:00:07]} Bh4 {[%emt 0:02:44]} 53. Bb6 {[%emt 0:01:41]} Be1 {[%emt 0:00:12]} 54. Ba5 {[%emt 0:00:17]} Bc3 {[%emt 0:01:00] [#]} 55. d7 $1 {[%emt 0:00:11]} Kxd7 {[%emt 0:00:04]} 56. Kd5 {[%emt 0:00:02]} Be1 {[%emt 0:00:09]} 57. Kc5 {[%emt 0:02:00]} Bc3 {[%emt 0:00:10]} 58. Kxb5 {[%emt 0:00:05] Intending Kc5 and mate.} Bxe5 {[%emt 0:00:05]} 59. Kc5 {[%emt 0:01:08] Threatening mate with b5.} Ke6 {[%emt 0:00:25]} 60. b5 {[%emt 0:00:05][%cal Bb4b5,Bb5b6,Bb6b7][%mdl 32] White mates.} Bf4 {[%emt 0:02:41]} 61. Kc6 {[%emt 0:00:11]} Be3 {[%emt 0:00:40]} 62. b6 {[%emt 0:01:39]} Ke5 {[%emt 0:00:42]} 63. b7 {[%emt 0:00:07]} Ba7 {[%emt 0:00:06]} 64. Bb6 {[%emt 0:00:04]} Bb8 {[%emt 0:00:06]} 65. Bc7+ {[%emt 0:02:48] Weighted Error Value: White=0.64/Black=0.33} 1-0

[Event "1st Bella Italia International 2022"]
[Site "Lignano"]
[Date "2022.08.20"]
[Round "5.8"]
[White "Priyanka Nutakki"]
[Black "Lapiccirella, Daniele"]
[Result "1/2-1/2"]
[ECO "D02"]
[WhiteElo "2308"]
[BlackElo "2173"]
[Annotator "TA"]
[PlyCount "56"]
[EventDate "2022.08.18"]
[EventCountry "ITA"]
[SourceTitle "playchess.com"]
[Source "ChessBase"]
[SourceQuality "1"]
[TimeControl "5400+30"]

{[%evp 15,56,-8,1,-5,3,0,14,-11,14,-25,-25,-31,-27,-73,-14,-120,-126,-131,-105,-133,-142,-155,-153,-141,-98,-91,-89,-91,-77,-94,-92,-84,-91,-114,-104,-158,-79,-83,0,-149,0,-85,0]} 1. d4 {[%emt 0:06:17]} d5 {[%emt 0:00:05]} 2. Nf3 {[%emt 0:00:05]} Nf6 {[%emt 0:00:05]} 3. Bf4 {[%emt 0:00:04]} e6 {[%emt 0:00:13]} 4. e3 {[%emt 0:00:01]} Bd6 {[%emt 0:00:16]} 5. Bd3 {[%emt 0:00:33]} O-O {[%emt 0:00:19]} 6. Nbd2 {[%emt 0:00:19]} c5 {[%emt 0:00:36]} 7. c3 {[%emt 0:03:21]} Nc6 {[%emt 0:10:59]} 8. Bg3 {[%emt 0:00:07]} b6 {[%emt 0:02:03]} 9. Qe2 {[%emt 0:00:06] is the new trend. D02: 1 d4 d5 2 Nf3 sidelines, including 2...Nf6 3 g3 and 2...Nf6 3 Bf4.} Bb7 {[%emt 0:06:06]} 10. Rd1 {[%emt 0:00:06]} Be7 {[%emt 0:14:01] [#]} 11. a3 $146 {[%emt 0:03:22] The position is equal.} ({Predecessor:} 11. Ne5 Rc8 12. f4 Ne8 13. h4 f5 14. h5 Nd6 15. h6 g6 16. Ndf3 Ne4 17. Bf2 cxd4 18. exd4 {0-1 (41) Sevian,S (2660)-Firouzja,A (2749) Chess.com INT 2020}) 11... h6 {[%emt 0:07:18]} 12. dxc5 {[%emt 0:02:21]} bxc5 {[%emt 0:00:33]} 13. e4 {[%emt 0:00:12]} Qb6 {[%emt 0:03:23] Threatens to win with ...c4.} 14. e5 {[%emt 0:01:17]} (14. Rb1 $11 {should be considered.}) 14... Nd7 {[%emt 0:00:15]} (14... Nh5 $17 {Hoping for ...c4.} 15. c4 Rab8) 15. Nf1 {[%emt 0:01:37]} (15. c4 $11 {remains equal.}) 15... a5 $17 {[%emt 0:00:53]} 16. Ne3 {[%emt 0:01:32]} Ba6 {[%emt 0:02:01]} 17. c4 {[%emt 0:03:45]} Nd4 {[%emt 0:05:45]} 18. Qd2 {[%emt 0:05:18]} Nxf3+ {[%emt 0:01:05]} 19. gxf3 {[%emt 0:00:02]} dxc4 {[%emt 0:00:15]} 20. Nxc4 {[%emt 0:03:00]} Bxc4 {[%emt 0:00:14]} 21. Bxc4 {[%emt 0:00:02]} Rad8 {[%emt 0:00:07][%cal Od7e5] aiming for ...Nxe5!} 22. Qe2 {[%emt 0:02:05]} Nb8 {[%emt 0:04:40]} 23. O-O {[%emt 0:01:32]} Nc6 {[%emt 0:00:13]} 24. Qe4 {[%emt 0:00:41]} Nd4 {[%emt 0:00:46]} 25. Bd3 {[%emt 0:03:25] [#]} (25. b3 $142) 25... Nf5 {[%emt 0:02:12]} (25... g6 $142 $1 26. Rb1 Qb3) 26. Qe2 {[%emt 0:00:12]} Nd4 {[%emt 0:00:37]} (26... Rd4 $142) 27. Qe4 {[%emt 0:00:06][%csl Gd3][%cal Re4h7] [#]} Nf5 {[%emt 0:00:06]} ({Black should try} 27... g6 $1 28. Rb1 Qb3) 28. Qe2 $1 {[%emt 0:01:39]} Nd4 {[%emt 0:00:08] Weighted Error Value: White=0.22 (precise) /Black=0.26 (precise)} (28... Rd4 $17) 1/2-1/2